Cogmind - Beta 10.2 @@@ ROGUE MODE // 2021.02.23 @ 23:06:03 Player: Cookedpoo Result: Self-destructed Performance ------------- Evolutions (4) 2000 Regions Visited (11) 2200 Robots Destroyed (133) 665 Value Destroyed (3187) 3187 Prototype IDs (9) 180 Alien Tech Used (0) 0 Bonus (913) 913 TOTAL SCORE: 9145 Bonus ------- High Alert Combat Kills 113 Follower Combat Kills 100 Entered Garrisons 200 Used RIF Installer 500 Cogmind --------- Core Integrity 850/850 Matter 263/300 Energy 85/100 System Corruption 25% Temperature Cool (0) Movement Rolling (150) Ox6 Location -6/Waste Parts ------- > --- POWER (1) -------- (None) > --- PROPULSION (2) --- Armored Wheel > --- UTILITY (10) ----- Humpback Advanced Targeting Computer Advanced Targeting Computer Advanced Targeting Computer Advanced Targeting Computer System Guard > --- WEAPON (2) ------- (None) > --- INVENTORY (24) --- Heavy Ion Engine Heavy Ion Engine Armored Wheel Armored Wheel Large Storage Unit Large Storage Unit Humpback Hacking Suite Relay Coupler [NC] (28) Relay Coupler [Grunt] (25) Relay Coupler [Grunt] (27) Relay Coupler [Sentry] (19) Particle Cannon Particle Cannon Minigun Minigun Heavy Flak Cannon Guided EMP Blaster Guided EMP Blaster Guided EMP Blaster Peak State ------------ > --- POWER ------------ Heavy Ion Engine > --- PROPULSION ------- Armored Wheel Armored Wheel > --- UTILITY ---------- Large Storage Unit Humpback Advanced Targeting Computer Advanced Targeting Computer Advanced Targeting Computer Advanced Targeting Computer Improved Light Armor Plating System Guard > --- WEAPON ----------- Precision Beam Rifle Precision Beam Rifle > --- INVENTORY -------- Heavy Ion Engine Heavy Ion Engine Armored Wheel Armored Wheel Armored Wheel Armored Wheel Large Storage Unit Large Storage Unit Large Storage Unit Large Storage Unit Humpback Advanced Signal Interpreter Hacking Suite Relay Coupler [NC] Relay Coupler [Grunt] Relay Coupler [Grunt] Relay Coupler [Sentry] Particle Cannon Particle Cannon Particle Cannon Minigun Minigun Heavy Flak Cannon Guided EMP Blaster Guided EMP Blaster Guided EMP Blaster [Rating: 47] Favorites ----------- Power Heavy Ion Engine Engine Heavy Ion Engine Propulsion Wheel Wheel Wheel Flight Unit Improved VTOL Module Utility Large Storage Unit Device System Guard Storage Large Storage Unit Processor Advanced Targeting Computer Hackware Hacking Suite Protection Improved Light Armor Plating Weapon Heavy Assault Rifle Energy Gun Precision Beam Rifle Ballistic Gun Heavy Assault Rifle Launcher Grenade Launcher Build | -11 -10 -9 -9 -9 -8 -8 -8 -8 -8 -6 -6 ------- Run | Scr Mat Mat Min Exi Min Mat Gar Sto Rec Fac Was Slots Evolved 8 | . . 2 . . . 2 . . . 4 . Power . | . . . . . . . . . . . . Propulsion . | . . . . . . . . . . . . Utility 8 | . . 2 . . . 2 . . . 4 . Weapon . | . . . . . . . . . . . . Parts Attached 114 | 6 26 30 11 6 . 3 10 16 1 2 3 Power 10 | 1 3 3 . 1 . . 1 1 . . . Engine 10 | 1 3 3 . 1 . . 1 1 . . . Core . | . . . . . . . . . . . . Reactor . | . . . . . . . . . . . . Propulsion 36 | 2 8 11 7 . . . 3 3 . . 2 Treads . | . . . . . . . . . . . . Leg . | . . . . . . . . . . . . Wheel 35 | 2 8 10 7 . . . 3 3 . . 2 Hover . | . . . . . . . . . . . . Flight 1 | . . 1 . . . . . . . . . Utility 22 | 1 4 3 . 3 . 3 1 3 1 2 1 Device 1 | . . . . . . . . . . . 1 Storage 12 | 1 4 2 . 3 . . 1 1 . . . Processor 6 | . . . . . . 2 . 1 1 2 . Hackware 1 | . . 1 . . . . . . . . . Protection 2 | . . . . . . 1 . 1 . . . Artifact . | . . . . . . . . . . . . Weapon 46 | 2 11 13 4 2 . . 5 9 . . . Energy Gun 10 | . 5 2 . . . . . 3 . . . Energy Cannon . | . . . . . . . . . . . . Ballistic Gun 26 | 2 3 9 2 2 . . 3 5 . . . Ballistic Cannon . | . . . . . . . . . . . . Launcher 10 | . 3 2 2 . . . 2 1 . . . Special Weapon . | . . . . . . . . . . . . Impact Weapon . | . . . . . . . . . . . . Slashing Weapon . | . . . . . . . . . . . . Piercing Weapon . | . . . . . . . . . . . . Special Melee Weapon . | . . . . . . . . . . . . Unidentified Prototypes 7 | . . 5 . . . . . 2 . . . Parts Lost 18 | . 8 4 . . . . 2 3 . . 1 Power . | . . . . . . . . . . . . Propulsion 10 | . 5 3 . . . . 1 1 . . . Utility 1 | . . . . . . . . . . . 1 Weapon 7 | . 3 1 . . . . 1 2 . . . Highest Loss Streak 3 | . 3 1 . . . . 1 1 . . 1 Average Slot Usage (%) 93 | . 97 98 100 94 88 86 89 88 90 80 80 Engine 10 | . 14 11 11 11 11 9 9 9 9 6 5 Wheel 21 | . 27 21 22 22 22 18 17 17 18 13 10 Storage 24 | . 26 32 33 28 22 18 18 18 18 13 13 Processor 7 | . . . . . . 14 18 18 18 26 26 Hackware 4 | . . 10 11 11 11 9 . . . . . Protection 3 | . . . . . . . 9 9 9 6 5 Energy Gun 7 | . 12 8 . . . . . 9 18 13 11 Ballistic Gun 13 | . 15 13 21 22 22 18 17 7 . . . Naked Turns . | . . . . . . . . . . . . Heaviest Build 117 | 13 42 62 63 110 110 113 114 117 111 111 113 Greatest Support 32 | 26 32 32 26 20 20 20 24 24 24 24 24 Greatest Overweight (x) 9 | . 1 6 3 5 5 5 5 4 4 4 9 Average Overweight (x) 2 | . . 2 2 3 5 5 4 4 4 4 5 Largest Inventory Capacity 30 | 6 16 22 22 30 30 30 30 30 30 30 30 Average Capacity 23 | 5 14 21 22 24 30 30 30 30 30 30 29 Most Carried 30 | 4 16 22 22 28 28 30 30 30 29 30 30 Average Carried 22 | 1 11 20 21 22 28 29 28 29 29 28 29 Final Capacity 30 | 6 16 22 22 30 30 30 30 30 30 30 24 Final Carried 30 | 4 16 22 22 28 28 29 30 29 29 30 24 Class Distribution -------------------- 64% | Hauler-Mutant 14% | Mutant 10% | Commander-Mutant 10% | Scavenger-Mutant Dominant Class ---------------- Mutant | -10/Materials Hauler-Mutant | -9/Materials Hauler-Mutant | -9/Mines Scavenger-Mutant | -9/Exiles Hauler-Mutant | -8/Mines Hauler-Mutant | -8/Materials Hauler-Mutant | -8/Garrison Hauler-Mutant | -8/Storage Commander-Mutant | -8/Recycling Commander-Mutant | -6/Factory Hauler-Mutant | -6/Waste Resources | -11 -10 -9 -9 -9 -8 -8 -8 -8 -8 -6 -6 ----------- Run | Scr Mat Mat Min Exi Min Mat Gar Sto Rec Fac Was Matter Collected 2889 | 272 651 562 363 60 . . 447 484 10 . 40 Remotely . | . . . . . . . . . . . . Salvage Created 4831 | 83 1326 1116 447 . . . 579 826 264 . 190 Parts 283 | 3 93 75 27 . . . 31 35 17 . 2 Haulers Intercepted 8 | . 2 2 . . . . . 4 . . . Recyclers Shooed 5 | . 1 1 1 . . . . 2 . . . Parts Field Recycled . | . . . . . . . . . . . . Retrieved Matter . | . . . . . . . . . . . . Parts Self-Destructed . | . . . . . . . . . . . . Prevented . | . . . . . . . . . . . . Kills | -11 -10 -9 -9 -9 -8 -8 -8 -8 -8 -6 -6 ------- Run | Scr Mat Mat Min Exi Min Mat Gar Sto Rec Fac Was Combat Hostiles Destroyed 82 | . 24 23 8 . . . 14 8 4 . 1 Guns 58 | . 19 16 2 . . . 8 8 4 . 1 AOE 24 | . 5 7 6 . . . 6 . . . . Classes Destroyed 12 | 1 8 1 . . . . . . 1 . 1 Worker 14 | . 9 2 3 . . . . . . . . Builder 6 | . 3 2 . . . . . . 1 . . Tunneler 5 | . 2 1 2 . . . . . . . . Hauler 8 | . 2 2 . . . . . 4 . . . Recycler 11 | 1 2 1 3 . . . . 2 2 . . Operator 3 | . 2 1 . . . . . . . . . Drone 4 | . . . . . . . . . 4 . . Watcher 4 | . 2 1 . . . . . 1 . . . Swarmer 25 | . 6 6 6 . . . 7 . . . . Grunt 41 | . 18 10 2 . . . 7 4 . . . Sentry 11 | . . 7 . . . . . 4 . . . Compactor 1 | . . . . . . . . . . . 1 Best Kill Streak 7 | 1 7 7 3 . . . 6 3 3 . 1 Combat Bots Only 6 | . 5 5 3 . . . 6 2 1 . 1 Max Kills in Single Turn 4 | 1 4 2 2 . . . 3 1 2 . 1 Gunslinging 1 | . 1 . . . . . . . . . . Exploded 3 | . 2 2 2 . . . 3 . . . . Melee . | . . . . . . . . . . . . Uniques/NPCs Destroyed . | . . . . . . . . . . . . Combat | -11 -10 -9 -9 -9 -8 -8 -8 -8 -8 -6 -6 -------- Run | Scr Mat Mat Min Exi Min Mat Gar Sto Rec Fac Was Damage Taken 4048 | . 922 1103 113 . . . 799 831 16 . 264 Core 492 | . 160 188 6 . . . 59 79 . . . Absorbed by Shields . | . . . . . . . . . . . . Core Remaining (%) 65 | 100 36 . . . 51 . . . 74 . . Volleys Fired 372 | 2 118 82 25 . . . 52 60 10 . 23 Largest 2 | 2 2 2 2 . . . 2 2 2 . 2 Hottest 122 | 40 80 112 46 . . . 56 122 122 . 122 Shots Fired 682 | 4 192 156 46 . . . 101 117 20 . 46 Gun 657 | 4 184 149 42 . . . 98 114 20 . 46 Cannon . | . . . . . . . . . . . . Launcher 25 | . 8 7 4 . . . 3 3 . . . Special . | . . . . . . . . . . . . Kinetic 456 | 4 127 99 42 . . . 98 86 . . . Thermal 149 | . 13 42 . . . . . 28 20 . 46 Explosive 20 | . 8 5 4 . . . 3 . . . . Electromagnetic 57 | . 44 10 . . . . . 3 . . . Robot Hit Streak 36 | 2 14 9 8 . . . 36 22 4 . 34 Robot Miss Streak 5 | 1 3 5 3 . . . 1 2 2 . 1 Penetration Max . | . . . . . . . . . . . . Secondary Targets 5 | . 3 . 1 . . . . . . . 1 Max Gunslinging Chain 1 | . 1 . 1 . . . . . . . 1 Shots Hit Robots 480 | 2 127 92 27 . . . 89 87 11 . 45 Core Hits 224 | 2 66 49 18 . . . 42 33 7 . 7 Critical Hits 1 | . 1 . . . . . . . . . . Critical Kills . | . . . . . . . . . . . . Critical Parts Destroyed 1 | . 1 . . . . . . . . . . Melee Attacks . | . . . . . . . . . . . . Impact . | . . . . . . . . . . . . Slashing . | . . . . . . . . . . . . Piercing . | . . . . . . . . . . . . Sneak Attacks . | . . . . . . . . . . . . Combat Hostiles . | . . . . . . . . . . . . Follow-up Attacks . | . . . . . . . . . . . . Damage Inflicted 9605 | 35 2624 2100 832 . . . 1565 1483 203 . 763 Guns 6745 | 35 1661 1397 364 . . . 1023 1299 203 . 763 Cannons . | . . . . . . . . . . . . Explosions 2836 | . 963 703 444 . . . 542 184 . . . Melee . | . . . . . . . . . . . . Ramming 24 | . . . 24 . . . . . . . . Kinetic 4389 | 35 1113 907 364 . . . 1023 947 . . . Thermal 2217 | . 186 627 86 . . . . 352 203 . 763 Explosive 2227 | . 890 437 358 . . . 542 . . . . Electromagnetic 748 | . 435 129 . . . . . 184 . . . Impact . | . . . . . . . . . . . . Slashing . | . . . . . . . . . . . . Piercing . | . . . . . . . . . . . . Highest Corruption 25 | . . 2 2 2 2 . . . . . 25 Average Corruption 3 | . . 2 2 2 2 . . . . . 13 Corruption Purged . | . . . . . . . . . . . . Effects 35 | . . 7 14 4 2 . . . . . 8 Message Errors 8 | . . 1 4 2 1 . . . . . . Matter Fused 3 | . . . . . . . . . . . 3 Heat Flow Errors 4 | . . 1 3 . . . . . . . . Energy Discharges 7 | . . 1 3 2 1 . . . . . . Data Loss (minor) 5 | . . 2 2 . . . . . . . 1 Alerts 1 | . . . . . . . . . . . 1 Targeting Errors 7 | . . 2 2 . . . . . . . 3 Overload Shots . | . . . . . . . . . . . . Overflow Damage 210 | . 63 133 14 . . . . . . . . Projectiles . | . . . . . . . . . . . . Explosions 210 | . 63 133 14 . . . . . . . . Melee . | . . . . . . . . . . . . Knockbacks . | . . . . . . . . . . . . Impact . | . . . . . . . . . . . . Kinetic . | . . . . . . . . . . . . Secondary . | . . . . . . . . . . . . Self-Inflicted Damage 185 | . 121 40 12 . . . 12 . . . . Shots 4 | . 2 1 . . . . 1 . . . . Rammed 1 | . . . 1 . . . . . . . . Targets Rammed 1 | . . . 1 . . . . . . . . Kicked . | . . . . . . . . . . . . Crushed . | . . . . . . . . . . . . Highest Temperature 315 | . 137 315 232 . . . 22 222 102 . 231 Average Temperature 59 | . 37 83 110 . . . 5 46 38 . 77 Received Heat Transfer 1437 | . 324 390 21 . . . 414 279 9 . . Siege Activations . | . . . . . . . . . . . . Robots Corrupted . | . . . . . . . . . . . . Combat Hostiles . | . . . . . . . . . . . . Parts Fried 1 | . 1 . . . . . . . . . . Impact Corruptions . | . . . . . . . . . . . . Robots Melted . | . . . . . . . . . . . . Combat Hostiles . | . . . . . . . . . . . . Parts Melted 7 | . . 2 . . . . . 4 1 . . Heat Transferred 4399 | . 300 1113 100 . . . . 777 444 . 1665 Parts Sabotaged . | . . . . . . . . . . . . Parts Stolen . | . . . . . . . . . . . . Parts Stripped . | . . . . . . . . . . . . Power Chain Reactions 2 | . 2 . . . . . . . . . . Missiles Intercepted . | . . . . . . . . . . . . Alert | -11 -10 -9 -9 -9 -8 -8 -8 -8 -8 -6 -6 ------- Run | Scr Mat Mat Min Exi Min Mat Gar Sto Rec Fac Was Peak Influence 1005 | 5 555 563 381 . . 3 394 388 289 1005 362 Initial 1005 | . 3 66 191 . . . 1 191 91 1005 362 Average 276 | 1 349 230 263 . . . 267 282 201 1005 267 Maximum Alert Level 3 | . 2 2 1 . . . 1 1 1 3 1 Low Security (%) 35 | 100 18 55 25 . 100 100 30 22 42 . 23 Level 1 47 | . 37 25 74 . . . 69 77 57 . 76 Level 2 13 | . 44 19 . . . . . . . . . Level 3 2 | . . . . . . . . . . 100 . Level 4 . | . . . . . . . . . . . . Level 5 . | . . . . . . . . . . . . High Security . | . . . . . . . . . . . . Max Security . | . . . . . . . . . . . . Squads Dispatched 16 | . 8 6 . . . . . 1 . 1 . Investigation 7 | . 6 1 . . . . . . . . . Extermination . | . . . . . . . . . . . . Reinforcement 8 | . 2 4 . . . . . 1 . 1 . Assault 1 | . . 1 . . . . . . . . . Garrison . | . . . . . . . . . . . . Intercept . | . . . . . . . . . . . . Construction Impeded 1 | . . 1 . . . . . . . . . Haulers Reinforced 1 | . . . . . . . . . . 1 . Stealth | -11 -10 -9 -9 -9 -8 -8 -8 -8 -8 -6 -6 --------- Run | Scr Mat Mat Min Exi Min Mat Gar Sto Rec Fac Was Distress Signals 7 | . 5 2 . . . . . . . . . Communications Jammed . | . . . . . . . . . . . . Distress Signals . | . . . . . . . . . . . . Times Spotted 138 | . 35 46 8 . . . 14 16 12 1 6 Peak Tracking Total 9 | . 5 9 3 . . . 4 3 3 1 4 Tactical Retreats 3 | . 1 1 . . . . . 1 . . . Traps | -11 -10 -9 -9 -9 -8 -8 -8 -8 -8 -6 -6 ------- Run | Scr Mat Mat Min Exi Min Mat Gar Sto Rec Fac Was Traps Triggered 10 | . 1 1 . . . . 5 2 . 1 . Indirectly . | . . . . . . . . . . . . Trap Hack Attempts . | . . . . . . . . . . . . Triggered . | . . . . . . . . . . . . Disarmed . | . . . . . . . . . . . . Reprogrammed . | . . . . . . . . . . . . Reused . | . . . . . . . . . . . . Traps Extracted . | . . . . . . . . . . . . Installed 3 | . . . 3 . . . . . . . . Triggered . | . . . . . . . . . . . . Machines | -11 -10 -9 -9 -9 -8 -8 -8 -8 -8 -6 -6 ---------- Run | Scr Mat Mat Min Exi Min Mat Gar Sto Rec Fac Was Machines Disabled 17 | . 5 5 4 . . . 2 . 1 . . Max in Single Turn 2 | . 2 2 1 . . . 1 . . . . Garrison Relay 2 | . . . . . . . 2 . . . . Machines Sabotaged . | . . . . . . . . . . . . Garrisons Compromised . | . . . . . . . . . . . . Overloaded Fab Kills . | . . . . . . . . . . . . Fab Network Shutdowns . | . . . . . . . . . . . . Hacking | -11 -10 -9 -9 -9 -8 -8 -8 -8 -8 -6 -6 --------- Run | Scr Mat Mat Min Exi Min Mat Gar Sto Rec Fac Was Machines Accessed 30 | . 9 8 . 1 . 1 . 3 8 . . Terminals 16 | . 6 5 . . . . . 2 3 . . Fabricators . | . . . . . . . . . . . . Repair Stations 3 | . 1 1 . . . . . 1 . . . Recycling Units 8 | . 2 1 . . . . . . 5 . . Scanalyzers 1 | . . 1 . . . . . . . . . Garrison Access 1 | . . . . . . 1 . . . . . Total Hacks 88 | . 29 21 . 1 . 1 . 18 18 . . Successful 47 | . 12 17 . 1 . 1 . 11 5 . . Failed 38 | . 16 3 . . . . . 6 13 . . Catastrophic 3 | . 1 . . . . . . 1 1 . . Database Lockouts 3 | . 1 1 . . . . . 1 . . . Manual 41 | . 16 11 . . . . . 7 7 . . Terminals 56 | . 24 14 . . . . . 7 11 . . Fabricators . | . . . . . . . . . . . . Repair Stations 16 | . 3 2 . . . . . 11 . . . Recycling Units 10 | . 2 1 . . . . . . 7 . . Scanalyzers 4 | . . 4 . . . . . . . . . Garrison Access 1 | . . . . . . 1 . . . . . Terminal Hacks 19 | . 9 6 . 1 . . . 2 1 . . Record 1 | . . . . 1 . . . . . . . Part Schematic 2 | . 1 . . . . . . 1 . . . Robot Analysis 2 | . 1 1 . . . . . . . . . Prototype ID Bank 1 | . . 1 . . . . . . . . . Branch Access Points 1 | . . . . . . . . 1 . . . Unreport Threat 3 | . 2 . . . . . . . 1 . . Locate Traps 5 | . 3 2 . . . . . . . . . Patrol Status 1 | . . 1 . . . . . . . . . Transport Status 1 | . 1 . . . . . . . . . . Hauler Manifests 1 | . . 1 . . . . . . . . . Zone Layout 1 | . 1 . . . . . . . . . . Fabricator Hacks . | . . . . . . . . . . . . Repair Station Hacks 11 | . 1 2 . . . . . 8 . . . Scan Component 6 | . 1 1 . . . . . 4 . . . Repair 5 | . . 1 . . . . . 4 . . . Recycling Unit Hacks . | . . . . . . . . . . . . Scanalyzer 4 | . . 4 . . . . . . . . . Insert Component 2 | . . 2 . . . . . . . . . Analyze 2 | . . 2 . . . . . . . . . Garrison Access Hacks 1 | . . . . . . 1 . . . . . Unlock Access 1 | . . . . . . 1 . . . . . Unauthorized Hacks 12 | . 2 5 . . . . . 1 4 . . Terminals 5 | . . 4 . . . . . 1 . . . Track 2 | . . 1 . . . . . 1 . . . Botnet 2 | . . 2 . . . . . . . . . Operators 1 | . . 1 . . . . . . . . . Fabricators . | . . . . . . . . . . . . Repair Stations . | . . . . . . . . . . . . Recycling Units 7 | . 2 1 . . . . . . 4 . . Tunnel 7 | . 2 1 . . . . . . 4 . . Scanalyzers . | . . . . . . . . . . . . Garrison Access . | . . . . . . . . . . . . Data Cores Recovered . | . . . . . . . . . . . . Used . | . . . . . . . . . . . . Hacking Detections 20 | . 7 6 . . . . . 3 4 . . Full Trace Events 4 | . 3 . . . . . . . 1 . . Feedback Events . | . . . . . . . . . . . . Feedback Blocked . | . . . . . . . . . . . . Robot Schematics Acquired . | . . . . . . . . . . . . Robots Built . | . . . . . . . . . . . . Matter . | . . . . . . . . . . . . Time . | . . . . . . . . . . . . Total Robot Build Rating . | . . . . . . . . . . . . Part Schematics Acquired 4 | . 1 2 . . . . . 1 . . . Parts Built . | . . . . . . . . . . . . Matter . | . . . . . . . . . . . . Time . | . . . . . . . . . . . . Total Part Build Rating . | . . . . . . . . . . . . Parts Repaired 5 | . . 1 . . . . . 4 . . . Time 154 | . . 26 . . . . . 128 . . . Parts Recycled . | . . . . . . . . . . . . Recycled Matter . | . . . . . . . . . . . . Retrieved Matter . | . . . . . . . . . . . . Retrieved Components . | . . . . . . . . . . . . Parts Scanalyzed 2 | . . 2 . . . . . . . . . Part Schematics Acquired 2 | . . 2 . . . . . . . . . Parts Damaged . | . . . . . . . . . . . . Bothacking | -11 -10 -9 -9 -9 -8 -8 -8 -8 -8 -6 -6 ------------ Run | Scr Mat Mat Min Exi Min Mat Gar Sto Rec Fac Was Used RIF Installer 1 | . . . . . . . 1 . . . . Robots Hacked . | . . . . . . . . . . . . Non-combat . | . . . . . . . . . . . . Combat . | . . . . . . . . . . . . Robot Hacks Applied . | . . . . . . . . . . . . Relay Couplers Released 8 | . . . . . . . 8 . . . . Machine Destruction 8 | . . . . . . . 8 . . . . Robots Rewired . | . . . . . . . . . . . . Allies Hacked . | . . . . . . . . . . . . Hacks Repelled . | . . . . . . . . . . . . Allies | -11 -10 -9 -9 -9 -8 -8 -8 -8 -8 -6 -6 -------- Run | Scr Mat Mat Min Exi Min Mat Gar Sto Rec Fac Was Total Allies 11 | . . . . . . . . 10 . . 1 Largest Group 10 | . . . . . . . . 10 10 9 4 Highest-Rated Group 173 | . . . . . . . . 173 173 157 77 Highest-Rated Ally 29 | . . . . . . . . 29 29 29 29 Total Orders . | . . . . . . . . . . . . Ally Attacks 136 | . . . . . . . . 3 47 11 75 Total Damage 1629 | . . . . . . . . 34 367 123 1105 Kills 12 | . . . . . . . . 1 9 1 1 Allies Corrupted . | . . . . . . . . . . . . Allies Melted . | . . . . . . . . . . . . Intel | -11 -10 -9 -9 -9 -8 -8 -8 -8 -8 -6 -6 ------- Run | Scr Mat Mat Min Exi Min Mat Gar Sto Rec Fac Was Robot Analysis Total 2 | . 1 1 . . . . . . . . . Derelict Logs Recovered 1 | . . . 1 . . . . . . . . Drone Launches . | . . . . . . . . . . . . Drone Recoveries . | . . . . . . . . . . . . Exploration | -11 -10 -9 -9 -9 -8 -8 -8 -8 -8 -6 -6 ------------- Run | Scr Mat Mat Min Exi Min Mat Gar Sto Rec Fac Was Turns Passed 6200 | 64 1257 1295 778 282 289 50 649 837 319 161 219 Spaces Moved 3902 | 50 855 765 619 218 223 33 322 383 212 121 101 Core 3 | 3 . . . . . . . . . . . Treads . | . . . . . . . . . . . . Legs . | . . . . . . . . . . . . Wheels 3899 | 47 855 765 619 218 223 33 322 383 212 121 101 Hover . | . . . . . . . . . . . . Flight . | . . . . . . . . . . . . Fastest Speed 50 | 50 90 110 110 90 130 130 130 130 130 130 130 Average Speed 115 | 86 98 110 110 115 130 130 131 130 130 130 144 Slowest Speed 180 | 90 110 140 110 130 130 130 135 130 130 130 180 Overloaded Moves . | . . . . . . . . . . . . Propulsion Burnouts . | . . . . . . . . . . . . Robots Hopped . | . . . . . . . . . . . . Cave-ins Triggered . | . . . . . . . . . . . . Exploration Rate (%) 48 | 3 94 68 99 54 61 4 38 51 64 6 38 Regions Visited 11 Branch Regions 5 Pre-discovered Areas 9 | . 2 1 1 1 . . . . 4 . . Known Exits Taken 2 | . . . . . . 1 . 1 . . . Unknown Exits Taken 7 | 1 1 1 1 1 1 . . . 1 . . Scrap Searched 3 | . . . 2 . 1 . . . . . . Spaces Dug 10 | . 10 . . . . . . . . . . Terrain Destroyed 158 | . 46 57 52 . . . 3 . . . . Melee . | . . . . . . . . . . . . Projectile . | . . . . . . . . . . . . AOE 158 | . 46 57 52 . . . 3 . . . . Terrain Rammed . | . . . . . . . . . . . . Walls Destroyed . | . . . . . . . . . . . . Machines Disabled . | . . . . . . . . . . . . Actions | -11 -10 -9 -9 -9 -8 -8 -8 -8 -8 -6 -6 --------- Run | Scr Mat Mat Min Exi Min Mat Gar Sto Rec Fac Was Total 4964 | 63 1081 1081 675 249 222 41 449 615 235 126 127 Wait 306 | 2 38 129 1 . . . . 123 13 . . Move 3891 | 49 854 764 618 217 222 32 320 382 211 121 101 Hop . | . . . . . . . . . . . . Pick Up 141 | 4 27 33 4 19 . 5 28 18 . 3 . Fast Attach 25 | 6 2 9 . 1 . . . 6 . . 1 Attach 35 | . 9 8 . 1 . 2 3 8 . 2 2 Detach 8 | . 2 5 . . . . . 1 . . . Swap 54 | . 15 13 11 4 . 1 7 2 1 . . Drop 93 | . 16 38 11 7 . 1 6 14 . . . Fire 372 | 2 118 82 25 . . . 52 60 10 . 23 Melee . | . . . . . . . . . . . . Ram 1 | . . . 1 . . . . . . . . Kick . | . . . . . . . . . . . . Crush . | . . . . . . . . . . . . Escape Stasis 32 | . . . . . . . 32 . . . . Rewire 3 | . . . 1 . . . 1 1 . . . Trap 3 | . . . 3 . . . . . . . . Miscellaneous . | . . . . . . . . . . . . Route ------- -11/Scrapyard -10/Materials (discovered 5 exits: *Mat x3 / [*Min x2]) -9/Materials (discovered 3 exits: *Mat / [*Min x2]) -9/Mines (discovered 3 exits: *Mat x2 / *Exi) -9/Exiles -8/Mines -8/Materials -8/Garrison -8/Storage -8/Recycling -6/Factory -6/Waste History --------- Turn | Location | Event 20 | -11/Scrapyard | Discovered new exit (range 15) 65 | -11/Scrapyard | Entered Materials 186 | -10/Materials | Discovered new exit (range 9) 270 | -10/Materials | Discovered new exit (range 12) 314 | -10/Materials | Build established: Mutant 434 | -10/Materials | Discovered new exit (range 6) 651 | -10/Materials | Lost 3 parts (1n2w) 742 | -10/Materials | Central database locked down 882 | -10/Materials | Discovered new exit (range 16) 916 | -10/Materials | Core integrity fell below 50% 1211 | -10/Materials | Build established: Scavenger-Mutant 1260 | -10/Materials | Discovered new exit (range 14) 1322 | -10/Materials | Entered another Materials area 1322 | -9/Materials | Evolved 2 slots: Utility x2 1323 | -9/Materials | Discovered new exit (range 7) 1365 | -9/Materials | Repaired Lrg. Storage Unit 1712 | -9/Materials | Build established: Hauler-Mutant 1797 | -9/Materials | Discovered new exit (range 6) 2486 | -9/Materials | Discovered new exit (range 9) 2493 | -9/Materials | Central database locked down 2522 | -9/Materials | First assault squad dispatched 2617 | -9/Materials | Entered Mines 2921 | -9/Mines | Found a hidden stash of uninstalled traps 2953 | -9/Mines | Discovered new exit (range 7) 3099 | -9/Mines | Received a Rocket Launcher from a helpful Derelict 3172 | -9/Mines | Learned Materials trap positions 3192 | -9/Mines | Discovered new exit (range 16) 3390 | -9/Mines | Deemed a non-threat by the Exiles lab entrance 3390 | -9/Mines | Discovered new exit (range 5) 3395 | -9/Mines | Entered Exiles 3435 | -9/Exiles | Met 8R-AWN 3454 | -9/Exiles | Met EX-HEX 3514 | -9/Exiles | Met EX-DEC 3534 | -9/Exiles | Learned location of Zion (-6) 3664 | -9/Exiles | Discovered new exit (range 12) 3677 | -9/Exiles | Entered Mines 3954 | -8/Mines | Discovered new exit (range 9) 3966 | -8/Mines | Entered Materials 3966 | -8/Materials | Evolved 2 slots: Utility x2 3967 | -8/Materials | Loaded intel: 21 trap records 4013 | -8/Materials | Identified exit to Garrison 4016 | -8/Materials | Entered Garrison 4030 | -8/Garrison | Triggered checkpoint 4164 | -8/Garrison | Triggered checkpoint 4168 | -8/Garrison | Garrison Relay disabled 4214 | -8/Garrison | Triggered checkpoint 4308 | -8/Garrison | Triggered checkpoint 4417 | -8/Garrison | Garrison Relay disabled 4448 | -8/Garrison | Discovered new exit (range 15) 4473 | -8/Garrison | Installed Relay Interface Framework 4665 | -8/Garrison | Entered Storage 5103 | -8/Storage | Repaired Lrg. Storage Unit 5142 | -8/Storage | Repaired Adv. Targeting Computer 5175 | -8/Storage | Repaired Arm. Wheel 5208 | -8/Storage | Repaired Arm. Wheel 5349 | -8/Storage | Identified exit to Recycling 5349 | -8/Storage | Central database locked down 5350 | -8/Storage | Assisted by bots powering up and referring to "LRC-V3" 5483 | -8/Storage | Used back door to open Recycling access 5502 | -8/Storage | Entered Recycling 5502 | -8/Recycling | Accompanied by 10 allies 5529 | -8/Recycling | Spotter reported a threat 5543 | -8/Recycling | Spotter reported a threat 5566 | -8/Recycling | Spotter reported a threat 5566 | -8/Recycling | Spotter reported a threat 5639 | -8/Recycling | Build established: Commander-Mutant 5646 | -8/Recycling | Spotter reported a threat 5646 | -8/Recycling | Spotter reported a threat 5677 | -8/Recycling | Spotter reported a threat 5699 | -8/Recycling | Spotter reported a threat 5711 | -8/Recycling | Spotter reported a threat 5764 | -8/Recycling | Spotter reported a threat 5764 | -8/Recycling | Spotter reported a threat 5766 | -8/Recycling | Spotter reported a threat 5775 | -8/Recycling | Discovered new exit (range 15) 5777 | -8/Recycling | Spotter reported a threat 5821 | -8/Recycling | Entered Factory 5821 | -6/Factory | Accompanied by 9 allies 5821 | -6/Factory | Evolved 4 slots: Utility x4 5982 | -6/Factory | Sucked down chute 5982 | -6/Factory | Entered Waste 5982 | -6/Waste | Met up with 1 ally sucked down the chute earlier 5997 | -6/Waste | EMP discharged 6016 | -6/Waste | Spotted C-40 Crusher 6039 | -6/Waste | Spotted C-40 Crusher 6056 | -6/Waste | Allies destroyed C-40 Crusher 6084 | -6/Waste | Destroyed C-40 Crusher 6093 | -6/Waste | Spotted C-40 Crusher 6093 | -6/Waste | Spotted C-40 Crusher 6097 | -6/Waste | EMP discharged 6097 | -6/Waste | System corruption reached 10% 6120 | -6/Waste | 8 allies followed down the chute 6136 | -6/Waste | Crushed by Compactor (0 parts destroyed, 1 dropped) 6137 | -6/Waste | Spotted C-40 Crusher 6169 | -6/Waste | Spotted C-40 Crusher 6179 | -6/Waste | Crushed by Compactor (0 parts destroyed, 2 dropped) 6189 | -6/Waste | Crushed by Compactor (1 part destroyed, 2 dropped) 6197 | -6/Waste | EMP discharged 6197 | -6/Waste | Crushed by Compactor (0 parts destroyed, 1 dropped) 6200 | -6/Waste | Crushed by Compactor (0 parts destroyed, 1 dropped) 6201 | -6/Waste | Self-destructed Last Messages --------------- 06150_ Trooper 5f destroyed. 06153_ 49 Matter crushed. 06154_ Lgt. Nuclear Core crushed. 06155_ Imp. Heat Sink crushed. 06157_ System corrupted: Matter fused (-9). 06174_ System corrupted: IFF burst signal emitted. 06179_ Hvy. Ion Engine crushed. 06179_ Prc. Beam Rifle crushed. 06179_ Critical hit. 06182_ Prc. Beam Rifle crushed. 06184_ Hvy. Ion Engine crushed. 06187_ ALERT: Foreign system detected. Charging EMP. 06189_ System corrupted: Matter fused (-8). 06189_ Imp. Light Armor Plating crushed. 06189_ Prc. Beam Rifle crushed. 06189_ Arm. Wheel crushed. 06197_ Prc. Beam Rifle fried beyond repair. 06197_ System corrupted (+7). 06197_ Arm. Wheel crushed. 06200_ Lrg. Storage Unit crushed. Map ----- +----------------------------------------------------+ | ??????????????######?????????????????????????????? | | ??????????????# #?????????????????????????????? | | ??????????????# #?????????????????????????????? | | ??????????????# =#?????????????????????????????? | | ??????????????# #?????????????????????????????? | | ????????????### #?????????????????????????????? | | ????????????# #?????????????????????????????? | | ????????????# #?????????????????????????????? | | ????????????# #?????????????????????????????? | | ????????????# #?????????????????????????????? | | ????????????### #?????????????????????????????? | | ############??#" #?????????????????????????????? | | # #??# #?????????????????????????????? | | # #??# #?????????????????????????????? | | # #### #?????????????????????????????? | | # #?????????????????????????????? | | # = #???????????#?????????????????? | | # %! #?????????? #?????????????????? | | # ! #?????????? #?????????????????? | | # #### #????????? #?????????????????? | | # #??# #???????? #?????????????????? | | # #??# #???????? #?????????????????? | | ############??#" #??????? #?????????????????? | | ????????????### ######## ########??????????? | | ????????????# CC ! ????????? | | ????????????# CC CC@! ????????? | | ????????????# CCCCCC ????????? | | ????????????# CC =CC ????????? | | ????????????### ######## ######## ?????????? | | ??????????????# #??????? #?????????????????? | | ??????????????# #???????? #?????????????????? | | ??????????????# #???????? #?????????????????? | | ??????????????# #????????? #?????????????????? | | ??????????????######?????????###?????????????????? | | ?????????????????????????????????????????????????? | | ?????????????????????????????????????????????????? | | ?????????????????????????????????????????????????? | | ?????????????????????????????????????????????????? | | ?????????????????????????????????????????????????? | | ?????????????????????????????????????????????????? | | ?????????????????????????????????????????????????? | | ?????????????????????????????????????????????????? | | ?????????????????????????????????????????????????? | | ?????????????????????????????????????????????????? | | ?????????????????????????????????????????????????? | | ?????????????????????????????????????????????????? | | ?????????????????????????????????????????????????? | | ?????????????????????????????????????????????????? | | ?????????????????????????????????????????????????? | | ?????????????????????????????????????????????????? | +----------------------------------------------------+ Best States ------------- Heat Dissipation 37 Energy Generation 14 Energy Capacity 280 Matter Stores 300 Matter Capacity 300 Sight Range 16 Terrain Scan Density 10 Corruption Prevention 12 Armor Coverage 150 Evasion (%) 42 Targeting Accuracy 32 Offensive Hacking 10 Item Schematics ----------------- Hcp. Storage Unit | -10/Materials | Hacked Transport Network Coupler | -9/Materials | Scanalyzed Lrg. Storage Unit | -9/Materials | Scanalyzed Hacking Suite | -8/Storage | Hacked Robot Schematics ------------------ None Fabricated ------------ Nothing Alien Tech Used ----------------- None Achievements -------------- None Challenges ------------ None Game ------ Seed FissionAccelerationMantle Manual? 0 Play Time 00:52:40 Cumulative 100.3 hours Start 2021.02.23 @ 22:15:01 End 2021.02.23 @ 23:06:03 Sessions 1 Manual Loads 0 Difficulty Rogue Special Mode None Game No. 93 Rogue 93 Adventurer 0 Explorer 0 Win Type - Total 2 Types 2/0/0/0/0/0/0/0/0 Lore% 57 Gallery% 58 Achievement% 47 Wizard Run 0 Options --------- ASCII 1 Keyboard 1 Movement Arrows Keybinds 0 Fullscreen 2 Font 18/TerminusBold Map View 76x50 Tactical HUD 1 Map Filters NONE Filters NONE Steam 1 RUN: 288d4f05-bedc-4c48-a039-a33a3ed49b71